[Event "*** Titled Tuesday Blitz"]
[Site "Chess.com"]
[Date "2020.12.29"]
[Round "3"]
[White "NodariousBIG"]
[Black "GM4life"]
[Result "1-0"]
[WhiteElo "2655"]
[BlackElo "2421"]
[TimeControl "180+1"]
[EndTime "10:25:30 PST"]
[Termination "NodariousBIG won by resignation"]

1. b3 {[%clk 0:03:00.9]} 1... e5 {[%clk 0:02:59.4]} 2. Bb2 {[%clk 0:03:01.2]}
2... Nc6 {[%clk 0:03:00]} 3. e3 {[%clk 0:03:01.7]} 3... d5 {[%clk 0:03:00.4]} 4.
Nf3 {[%clk 0:03:01.2]} 4... Bd6 {[%clk 0:03:00.6]} 5. d4 {[%clk 0:03:01.3]} 5...
e4 {[%clk 0:03:00.5]} 6. Nfd2 {[%clk 0:03:01.9]} 6... f5 {[%clk 0:03:00.2]} 7.
c4 {[%clk 0:03:01.8]} 7... Nf6 {[%clk 0:03:00.6]} 8. Nc3 {[%clk 0:03:01.4]} 8...
Be6 {[%clk 0:02:55.4]} 9. g3 {[%clk 0:03:00.9]} 9... Qd7 {[%clk 0:02:49.7]} 10.
Qc1 {[%clk 0:02:59.6]} 10... O-O {[%clk 0:02:44.7]} 11. Ba3 {[%clk 0:02:59.6]}
11... Ng4 {[%clk 0:02:31.8]} 12. cxd5 {[%clk 0:02:54.1]} 12... Bxa3 {[%clk
0:02:31.4]} 13. Qxa3 {[%clk 0:02:53.9]} 13... Bxd5 {[%clk 0:02:30.6]} 14. Nxd5
{[%clk 0:02:54.1]} 14... Kh8 {[%clk 0:02:23.5]} 15. Nf4 {[%clk 0:02:02.7]} 15...
Nxd4 {[%clk 0:02:22.1]} 16. Qb2 {[%clk 0:01:52.7]} 16... c5 {[%clk 0:02:12.6]}
17. exd4 {[%clk 0:01:50.7]} 17... cxd4 {[%clk 0:02:12.6]} 18. Be2 {[%clk
0:01:49.9]} 18... e3 {[%clk 0:02:11.5]} 19. Bxg4 {[%clk 0:01:46.4]} 19... exd2+
{[%clk 0:02:11.4]} 20. Qxd2 {[%clk 0:01:46.3]} 20... fxg4 {[%clk 0:02:11.7]} 21.
O-O {[%clk 0:01:46.7]} 21... g5 {[%clk 0:02:02.3]} 22. Ne2 {[%clk 0:01:40.8]}
22... d3 {[%clk 0:01:59.4]} 23. Nc3 {[%clk 0:01:40.5]} 23... Rf5 {[%clk
0:01:57.8]} 24. Rad1 {[%clk 0:01:39.7]} 24... Rd8 {[%clk 0:01:57.5]} 25. Ne4
{[%clk 0:01:39.8]} 25... Qe7 {[%clk 0:01:56.4]} 26. Rfe1 {[%clk 0:01:36.7]}
26... Re5 {[%clk 0:01:55.7]} 27. Qc3 {[%clk 0:01:20.4]} 27... Kg8 {[%clk
0:01:54]} 28. Rxd3 {[%clk 0:01:20.1]} 28... Re8 {[%clk 0:01:50]} 29. Rde3 {[%clk
0:01:17.5]} 29... Rxe4 {[%clk 0:01:49.6]} 30. Rxe4 {[%clk 0:01:17.3]} 30... Qxe4
{[%clk 0:01:49.9]} 31. Rxe4 {[%clk 0:01:17.5]} 31... Rxe4 {[%clk 0:01:50.8]} 32.
Qc8+ {[%clk 0:01:17.9]} 32... Kg7 {[%clk 0:01:49.8]} 33. Qxb7+ {[%clk
0:01:18.3]} 1-0

[Event "*** Titled Tuesday Blitz"]
[Site "Chess.com"]
[Date "2020.12.29"]
[Round "3"]
[White "Orest_Vovk"]
[Black "scabies1"]
[Result "0-1"]
[WhiteElo "2512"]
[BlackElo "2333"]
[TimeControl "180+1"]
[EndTime "10:25:31 PST"]
[Termination "scabies1 won by checkmate"]

1. e4 {[%clk 0:03:00.9]} 1... c5 {[%clk 0:02:59.1]} 2. g3 {[%clk 0:03:00.2]}
2... Nc6 {[%clk 0:02:58]} 3. Bg2 {[%clk 0:03:00.3]} 3... g6 {[%clk 0:02:54]} 4.
f4 {[%clk 0:02:57.4]} 4... Bg7 {[%clk 0:02:52.8]} 5. Nf3 {[%clk 0:02:57.7]} 5...
d6 {[%clk 0:02:53.2]} 6. O-O {[%clk 0:02:57.6]} 6... Nf6 {[%clk 0:02:48.1]} 7.
d3 {[%clk 0:02:56.1]} 7... O-O {[%clk 0:02:45.4]} 8. c3 {[%clk 0:02:55.9]} 8...
e5 {[%clk 0:02:34.6]} 9. h3 {[%clk 0:02:52.2]} 9... Nh5 {[%clk 0:02:29.8]} 10.
Kh2 {[%clk 0:02:47.8]} 10... h6 {[%clk 0:02:14.7]} 11. Na3 {[%clk 0:02:43.1]}
11... a6 {[%clk 0:02:13]} 12. Nc2 {[%clk 0:02:38.4]} 12... Rb8 {[%clk
0:02:02.7]} 13. Qe2 {[%clk 0:02:37.7]} 13... b5 {[%clk 0:02:00.7]} 14. Be3
{[%clk 0:02:35.7]} 14... b4 {[%clk 0:01:56.9]} 15. c4 {[%clk 0:02:31]} 15...
exf4 {[%clk 0:01:52.2]} 16. gxf4 {[%clk 0:02:27.4]} 16... Bxb2 {[%clk
0:01:51.7]} 17. Rae1 {[%clk 0:02:24.9]} 17... Bc3 {[%clk 0:01:41.2]} 18. Bd2
{[%clk 0:02:24]} 18... Bg7 {[%clk 0:01:18.6]} 19. d4 {[%clk 0:02:07.6]} 19...
cxd4 {[%clk 0:01:11.2]} 20. Nfxd4 {[%clk 0:02:05.5]} 20... Nxd4 {[%clk
0:01:07.5]} 21. Nxd4 {[%clk 0:02:06.4]} 21... Bxd4 {[%clk 0:01:06.8]} 22. Bf3
{[%clk 0:01:56.5]} 22... Qh4 {[%clk 0:01:02.3]} 23. Bxh5 {[%clk 0:01:45.2]}
23... Qxh3# {[%clk 0:01:00.8]} 0-1

[Event "*** Titled Tuesday Blitz"]
[Site "Chess.com"]
[Date "2020.12.29"]
[Round "3"]
[White "MarcLonoff"]
[Black "Caisachess"]
[Result "0-1"]
[WhiteElo "2165"]
[BlackElo "2353"]
[TimeControl "180+1"]
[EndTime "10:25:33 PST"]
[Termination "Caisachess won by resignation"]

1. c4 {[%clk 0:02:53.9]} 1... e5 {[%clk 0:02:55.8]} 2. Nc3 {[%clk 0:02:53]} 2...
Nf6 {[%clk 0:02:55.4]} 3. g3 {[%clk 0:02:52.3]} 3... d5 {[%clk 0:02:54.2]} 4.
cxd5 {[%clk 0:02:51.6]} 4... Nxd5 {[%clk 0:02:55.1]} 5. Bg2 {[%clk 0:02:51.3]}
5... Nb6 {[%clk 0:02:55.4]} 6. e3 {[%clk 0:02:47.7]} 6... Nc6 {[%clk 0:02:55.2]}
7. Nge2 {[%clk 0:02:47]} 7... Be7 {[%clk 0:02:53.3]} 8. O-O {[%clk 0:02:46.5]}
8... O-O {[%clk 0:02:53.6]} 9. f4 {[%clk 0:02:43.8]} 9... exf4 {[%clk
0:02:51.5]} 10. Nxf4 {[%clk 0:02:43.3]} 10... Ne5 {[%clk 0:02:47.4]} 11. d4
{[%clk 0:02:37.4]} 11... Nec4 {[%clk 0:02:44.6]} 12. b3 {[%clk 0:02:17.1]} 12...
Nd6 {[%clk 0:02:41.5]} 13. e4 {[%clk 0:02:09.2]} 13... c6 {[%clk 0:02:37.8]} 14.
Bb2 {[%clk 0:01:58]} 14... Ne8 {[%clk 0:02:30.3]} 15. e5 {[%clk 0:01:52.4]}
15... Nc7 {[%clk 0:02:29.9]} 16. Ne4 {[%clk 0:01:47.8]} 16... Nbd5 {[%clk
0:02:22.3]} 17. Qh5 {[%clk 0:01:31.6]} 17... Ne3 {[%clk 0:01:51.2]} 18. Rf2
{[%clk 0:01:03.7]} 18... Bg4 {[%clk 0:01:48.9]} 0-1

[Event "*** Titled Tuesday Blitz"]
[Site "Chess.com"]
[Date "2020.12.29"]
[Round "3"]
[White "Tssunami"]
[Black "zurzan"]
[Result "1-0"]
[WhiteElo "2313"]
[BlackElo "2048"]
[TimeControl "180+1"]
[EndTime "10:25:41 PST"]
[Termination "Tssunami won by resignation"]

1. c4 {[%clk 0:03:00.9]} 1... f5 {[%clk 0:02:59.1]} 2. Nc3 {[%clk 0:03:01.2]}
2... Nf6 {[%clk 0:02:59.3]} 3. d4 {[%clk 0:03:01.3]} 3... g6 {[%clk 0:02:59.6]}
4. h4 {[%clk 0:03:01.2]} 4... Bg7 {[%clk 0:03:00.5]} 5. h5 {[%clk 0:03:01.5]}
5... c6 {[%clk 0:02:29.2]} 6. Bg5 {[%clk 0:02:44.1]} 6... e6 {[%clk 0:02:09.6]}
7. e4 {[%clk 0:02:41.4]} 7... h6 {[%clk 0:02:02.9]} 8. Bxf6 {[%clk 0:02:40.4]}
8... Qxf6 {[%clk 0:01:59.8]} 9. e5 {[%clk 0:02:40.2]} 9... Qf7 {[%clk 0:01:55]}
10. hxg6 {[%clk 0:02:40]} 10... Qxg6 {[%clk 0:01:54.4]} 11. Be2 {[%clk
0:02:40.5]} 11... O-O {[%clk 0:01:49.4]} 12. Nh3 {[%clk 0:02:35.3]} 12... Qxg2
{[%clk 0:01:44.7]} 13. Bf3 {[%clk 0:02:34.7]} 13... Qg6 {[%clk 0:01:39.6]} 14.
Nf4 {[%clk 0:02:34.7]} 14... Qh7 {[%clk 0:01:38]} 15. Bh5 {[%clk 0:02:34.1]}
15... c5 {[%clk 0:00:51.1]} 16. Bg6 {[%clk 0:02:32.9]} 16... Qh8 {[%clk
0:00:50.9]} 17. Nb5 {[%clk 0:02:30.3]} 17... Na6 {[%clk 0:00:47.7]} 18. Nd6
{[%clk 0:02:23.9]} 18... cxd4 {[%clk 0:00:23.4]} 19. Qh5 {[%clk 0:02:23.1]}
19... Bxe5 {[%clk 0:00:20]} 20. Bf7+ {[%clk 0:02:22.5]} 1-0

[Event "*** Titled Tuesday Blitz"]
[Site "Chess.com"]
[Date "2020.12.29"]
[Round "3"]
[White "m_ezat"]
[Black "ViktoriyaTarasova"]
[Result "1-0"]
[WhiteElo "2539"]
[BlackElo "2343"]
[TimeControl "180+1"]
[EndTime "10:25:42 PST"]
[Termination "m_ezat won by resignation"]

1. d4 {[%clk 0:03:00.9]} 1... Nf6 {[%clk 0:02:59.6]} 2. c4 {[%clk 0:02:59.6]}
2... e6 {[%clk 0:03:00]} 3. Nc3 {[%clk 0:02:56.9]} 3... Bb4 {[%clk 0:02:59.8]}
4. e3 {[%clk 0:02:55.1]} 4... d5 {[%clk 0:02:58.2]} 5. a3 {[%clk 0:02:52.4]}
5... Bxc3+ {[%clk 0:02:54.8]} 6. bxc3 {[%clk 0:02:52.4]} 6... O-O {[%clk
0:02:55]} 7. cxd5 {[%clk 0:02:51.7]} 7... exd5 {[%clk 0:02:54.6]} 8. Bd3 {[%clk
0:02:50.6]} 8... b6 {[%clk 0:02:54.8]} 9. f3 {[%clk 0:02:50.5]} 9... Ba6 {[%clk
0:02:54.6]} 10. Ne2 {[%clk 0:02:47.4]} 10... Bxd3 {[%clk 0:02:46.8]} 11. Qxd3
{[%clk 0:02:21.5]} 11... c5 {[%clk 0:02:46.3]} 12. O-O {[%clk 0:02:20.4]} 12...
Qc7 {[%clk 0:02:36.2]} 13. Ng3 {[%clk 0:02:15]} 13... Nbd7 {[%clk 0:02:34.3]}
14. e4 {[%clk 0:02:10.8]} 14... cxd4 {[%clk 0:02:15.3]} 15. cxd4 {[%clk
0:02:09.3]} 15... dxe4 {[%clk 0:02:14.8]} 16. fxe4 {[%clk 0:02:07]} 16... Rac8
{[%clk 0:02:10.3]} 17. e5 {[%clk 0:02:00.6]} 17... Nd5 {[%clk 0:02:08.8]} 18.
Nf5 {[%clk 0:01:52]} 18... Qc3 {[%clk 0:01:52.1]} 19. Qe4 {[%clk 0:01:51.7]}
19... Qxa1 {[%clk 0:01:35.4]} 20. Bh6 {[%clk 0:01:36.5]} 20... Qxf1+ {[%clk
0:01:34.5]} 21. Kxf1 {[%clk 0:01:36.1]} 21... g6 {[%clk 0:01:19.6]} 22. Qxd5
{[%clk 0:01:31]} 22... gxf5 {[%clk 0:01:15.7]} 23. Qxd7 {[%clk 0:01:30.2]} 23...
Rfd8 {[%clk 0:01:09.5]} 24. Qxf5 {[%clk 0:01:29.9]} 1-0

[Event "*** Titled Tuesday Blitz"]
[Site "Chess.com"]
[Date "2020.12.29"]
[Round "3"]
[White "NMShanMeruga"]
[Black "731291"]
[Result "1-0"]
[WhiteElo "2413"]
[BlackElo "2575"]
[TimeControl "180+1"]
[EndTime "10:25:47 PST"]
[Termination "NMShanMeruga won by checkmate"]

1. e4 {[%clk 0:03:00.9]} 1... c5 {[%clk 0:02:59.9]} 2. Nc3 {[%clk 0:03:00.4]}
2... e6 {[%clk 0:02:58.7]} 3. Nf3 {[%clk 0:02:58.8]} 3... d5 {[%clk 0:02:57.6]}
4. d4 {[%clk 0:02:56.3]} 4... cxd4 {[%clk 0:02:55.6]} 5. Bg5 {[%clk 0:02:53.8]}
5... f6 {[%clk 0:02:50.3]} 6. Bb5+ {[%clk 0:02:51.1]} 6... Bd7 {[%clk
0:02:30.9]} 7. Nxd4 {[%clk 0:02:49]} 7... Bxb5 {[%clk 0:02:20.9]} 8. Nxe6 {[%clk
0:02:34.7]} 8... Qa5 {[%clk 0:02:20.6]} 9. Bd2 {[%clk 0:02:31.9]} 9... Kf7
{[%clk 0:02:04.3]} 10. Nxd5 {[%clk 0:02:27]} 10... Qa4 {[%clk 0:02:01.9]} 11.
Qf3 {[%clk 0:02:24.7]} 11... Kxe6 {[%clk 0:01:56.7]} 12. Nc7+ {[%clk 0:02:13.9]}
12... Kf7 {[%clk 0:01:56.3]} 13. Nxa8 {[%clk 0:02:14.8]} 13... Bd6 {[%clk
0:01:47.7]} 14. Bc3 {[%clk 0:02:07.5]} 14... Nc6 {[%clk 0:01:45]} 15. Qh5+
{[%clk 0:02:00.1]} 15... Ke7 {[%clk 0:01:23.5]} 16. O-O-O {[%clk 0:01:57.8]}
16... Qxa2 {[%clk 0:01:20.6]} 17. Rxd6 {[%clk 0:01:39.7]} 17... Kxd6 {[%clk
0:00:53.9]} 18. Rd1+ {[%clk 0:01:38.5]} 18... Ke7 {[%clk 0:00:54.4]} 19. Nc7
{[%clk 0:01:35.5]} 19... Bc4 {[%clk 0:00:49.4]} 20. Qe8# {[%clk 0:01:31.3]} 1-0

[Event "*** Titled Tuesday Blitz"]
[Site "Chess.com"]
[Date "2020.12.29"]
[Round "3"]
[White "Beca95"]
[Black "PhoenixFire8"]
[Result "1-0"]
[WhiteElo "2828"]
[BlackElo "2451"]
[TimeControl "180+1"]
[EndTime "10:25:51 PST"]
[Termination "Beca95 won by resignation"]

1. d4 {[%clk 0:03:00.9]} 1... Nf6 {[%clk 0:02:57.6]} 2. c4 {[%clk 0:03:00.6]}
2... e6 {[%clk 0:02:57.7]} 3. Nc3 {[%clk 0:03:00.9]} 3... d5 {[%clk 0:02:54.5]}
4. Nf3 {[%clk 0:03:00.4]} 4... Be7 {[%clk 0:02:53.2]} 5. Bg5 {[%clk 0:02:58.2]}
5... O-O {[%clk 0:02:52.9]} 6. e3 {[%clk 0:02:58.5]} 6... h6 {[%clk 0:02:52.3]}
7. Bh4 {[%clk 0:02:56.6]} 7... dxc4 {[%clk 0:02:41.4]} 8. Bxc4 {[%clk
0:02:55.8]} 8... a6 {[%clk 0:02:41.7]} 9. a4 {[%clk 0:02:46.2]} 9... b6 {[%clk
0:02:33.4]} 10. O-O {[%clk 0:02:41.2]} 10... Bb7 {[%clk 0:02:33.9]} 11. Qe2
{[%clk 0:02:41]} 11... Ne4 {[%clk 0:02:23]} 12. Bg3 {[%clk 0:02:41]} 12... Nd7
{[%clk 0:02:16.4]} 13. Rfd1 {[%clk 0:02:40.1]} 13... Ndf6 {[%clk 0:02:09]} 14.
Be5 {[%clk 0:02:36.3]} 14... Nxc3 {[%clk 0:02:06.4]} 15. bxc3 {[%clk 0:02:35.5]}
15... Ne4 {[%clk 0:02:06.9]} 16. Rac1 {[%clk 0:02:30.8]} 16... Qd7 {[%clk
0:02:06.4]} 17. Bb3 {[%clk 0:02:28.5]} 17... b5 {[%clk 0:02:00.8]} 18. a5 {[%clk
0:02:28]} 18... c5 {[%clk 0:01:55]} 19. c4 {[%clk 0:02:27.1]} 19... b4 {[%clk
0:01:48.4]} 20. d5 {[%clk 0:02:22.6]} 20... exd5 {[%clk 0:01:47]} 21. cxd5
{[%clk 0:02:23]} 21... Bd6 {[%clk 0:01:42.7]} 22. Qc2 {[%clk 0:02:15.6]} 22...
Bxe5 {[%clk 0:01:37.1]} 23. Nxe5 {[%clk 0:02:04.6]} 23... Qf5 {[%clk 0:01:37.1]}
24. Nc6 {[%clk 0:01:58.8]} 24... Bxc6 {[%clk 0:01:23.9]} 25. dxc6 {[%clk
0:01:59.7]} 25... Rad8 {[%clk 0:01:23.8]} 26. f3 {[%clk 0:01:56.6]} 26... Nd6
{[%clk 0:01:22.4]} 27. Qxf5 {[%clk 0:01:50.7]} 27... Nxf5 {[%clk 0:01:23.3]} 28.
Rxd8 {[%clk 0:01:45.7]} 28... Rxd8 {[%clk 0:01:23.1]} 29. Rxc5 {[%clk
0:01:43.7]} 29... Nxe3 {[%clk 0:01:21.7]} 30. c7 {[%clk 0:01:42.9]} 30... Rc8
{[%clk 0:01:20.2]} 31. Ba4 {[%clk 0:01:43]} 31... b3 {[%clk 0:01:16.3]} 32. Bxb3
{[%clk 0:01:43]} 32... Kf8 {[%clk 0:01:12.6]} 33. Kf2 {[%clk 0:01:43.1]} 1-0

[Event "*** Titled Tuesday Blitz"]
[Site "Chess.com"]
[Date "2020.12.29"]
[Round "3"]
[White "Bodnar_Mykola"]
[Black "Kaslask"]
[Result "1-0"]
[WhiteElo "2545"]
[BlackElo "2286"]
[TimeControl "180+1"]
[EndTime "10:25:55 PST"]
[Termination "Bodnar_Mykola won by resignation"]

1. e4 {[%clk 0:03:00.9]} 1... c5 {[%clk 0:02:57.7]} 2. Nf3 {[%clk 0:03:01.1]}
2... Nc6 {[%clk 0:02:57.4]} 3. Bb5 {[%clk 0:02:59.5]} 3... g6 {[%clk 0:02:56]}
4. O-O {[%clk 0:02:56.8]} 4... Bg7 {[%clk 0:02:54.6]} 5. Bxc6 {[%clk 0:02:57.2]}
5... dxc6 {[%clk 0:02:53.3]} 6. d3 {[%clk 0:02:56.3]} 6... e5 {[%clk 0:02:52.5]}
7. h3 {[%clk 0:02:56.3]} 7... Ne7 {[%clk 0:02:51.6]} 8. Nc3 {[%clk 0:02:56.8]}
8... h6 {[%clk 0:02:50.9]} 9. Be3 {[%clk 0:02:57.3]} 9... b6 {[%clk 0:02:49.4]}
10. Qd2 {[%clk 0:02:57.9]} 10... Be6 {[%clk 0:02:47.3]} 11. Nh2 {[%clk
0:02:56.9]} 11... g5 {[%clk 0:02:44.1]} 12. Ne2 {[%clk 0:02:52.5]} 12... f5
{[%clk 0:02:41.8]} 13. exf5 {[%clk 0:02:48.7]} 13... Nxf5 {[%clk 0:02:40.7]} 14.
Ng3 {[%clk 0:02:45.4]} 14... Nh4 {[%clk 0:02:30.6]} 15. Rae1 {[%clk 0:02:42.5]}
15... Bxh3 {[%clk 0:02:28.1]} 16. gxh3 {[%clk 0:02:41.3]} 16... Qd7 {[%clk
0:02:23.9]} 17. f4 {[%clk 0:02:30.4]} 17... Qxh3 {[%clk 0:02:21.6]} 18. Qf2
{[%clk 0:02:25.9]} 18... O-O {[%clk 0:02:20.4]} 19. f5 {[%clk 0:02:20.2]} 19...
e4 {[%clk 0:02:16.1]} 20. Nxe4 {[%clk 0:02:16.9]} 20... Be5 {[%clk 0:02:11.4]}
21. f6 {[%clk 0:02:10.9]} 21... g4 {[%clk 0:02:00.4]} 22. Bf4 {[%clk 0:02:00.1]}
22... Bd4 {[%clk 0:01:57.5]} 23. Be3 {[%clk 0:01:58.1]} 23... Be5 {[%clk
0:01:40.7]} 24. Bf4 {[%clk 0:01:54]} 24... Bd4 {[%clk 0:01:39.8]} 25. Re3 {[%clk
0:01:54.6]} 25... Kh8 {[%clk 0:01:26.8]} 26. Rxh3 {[%clk 0:01:50.9]} 26... gxh3
{[%clk 0:01:23.5]} 27. Be3 {[%clk 0:01:46.3]} 27... Rg8+ {[%clk 0:01:22.7]} 28.
Kh1 {[%clk 0:01:46.4]} 28... Rg2 {[%clk 0:01:14.4]} 29. Qf4 {[%clk 0:01:46.1]}
29... Nf5 {[%clk 0:00:52.8]} 30. Qxf5 {[%clk 0:01:44.6]} 30... Bxe3 {[%clk
0:00:52.5]} 31. Qxh3 {[%clk 0:01:44.9]} 1-0

[Event "*** Titled Tuesday Blitz"]
[Site "Chess.com"]
[Date "2020.12.29"]
[Round "3"]
[White "Klavdia_Nik"]
[Black "TokChess"]
[Result "0-1"]
[WhiteElo "2073"]
[BlackElo "2477"]
[TimeControl "180+1"]
[EndTime "10:25:58 PST"]
[Termination "TokChess won on time"]

1. Nf3 {[%clk 0:02:02.7]} 1... Nf6 {[%clk 0:02:47.8]} 2. c4 {[%clk 0:01:59.7]}
2... c6 {[%clk 0:02:47.5]} 3. b3 {[%clk 0:01:55.9]} 3... d5 {[%clk 0:02:45.4]}
4. Bb2 {[%clk 0:01:54.2]} 4... Bg4 {[%clk 0:02:45.4]} 5. Ne5 {[%clk 0:01:53]}
5... Bh5 {[%clk 0:02:45]} 6. g3 {[%clk 0:01:53.2]} 6... e6 {[%clk 0:02:45.5]} 7.
Bg2 {[%clk 0:01:52.7]} 7... Nbd7 {[%clk 0:02:45.9]} 8. Nf3 {[%clk 0:01:52.1]}
8... Be7 {[%clk 0:02:45.6]} 9. O-O {[%clk 0:01:52.3]} 9... a5 {[%clk 0:02:46.1]}
10. d3 {[%clk 0:01:47.2]} 10... O-O {[%clk 0:02:45.3]} 11. Nbd2 {[%clk
0:01:45.6]} 11... Qb6 {[%clk 0:02:45.1]} 12. Qc2 {[%clk 0:01:39.5]} 12... Rfc8
{[%clk 0:02:44.7]} 13. a3 {[%clk 0:01:28.2]} 13... h6 {[%clk 0:02:43.1]} 14.
Rfe1 {[%clk 0:01:18.5]} 14... Bg6 {[%clk 0:02:43.4]} 15. Ne5 {[%clk 0:00:49.8]}
15... Nxe5 {[%clk 0:02:42]} 16. Bxe5 {[%clk 0:00:49.4]} 16... Ng4 {[%clk
0:02:42.4]} 17. Qb2 {[%clk 0:00:05.7]} 17... Qxf2+ {[%clk 0:02:34.3]} 18. Kh1
{[%clk 0:00:05.4]} 18... Qe3 {[%clk 0:02:18.6]} 19. Nf3 {[%clk 0:00:04.6]} 19...
Nf2+ {[%clk 0:02:15.3]} 20. Kg1 {[%clk 0:00:04.3]} 20... Nh3+ {[%clk 0:02:13.6]}
0-1

[Event "*** Titled Tuesday Blitz"]
[Site "Chess.com"]
[Date "2020.12.29"]
[Round "3"]
[White "Vamostodorecto"]
[Black "sopo-tereladze"]
[Result "1-0"]
[WhiteElo "2426"]
[BlackElo "2285"]
[TimeControl "180+1"]
[EndTime "10:26:01 PST"]
[Termination "Vamostodorecto won by checkmate"]

1. d4 {[%clk 0:02:57.8]} 1... Nf6 {[%clk 0:02:59.2]} 2. c4 {[%clk 0:02:58.4]}
2... e6 {[%clk 0:02:59.4]} 3. Nc3 {[%clk 0:02:58.7]} 3... Bb4 {[%clk 0:02:59.7]}
4. e3 {[%clk 0:02:55]} 4... Bxc3+ {[%clk 0:02:58.2]} 5. bxc3 {[%clk 0:02:54.5]}
5... O-O {[%clk 0:02:59.1]} 6. Nf3 {[%clk 0:02:54.5]} 6... b6 {[%clk 0:02:58.4]}
7. Bd3 {[%clk 0:02:55.1]} 7... Bb7 {[%clk 0:02:58.8]} 8. O-O {[%clk 0:02:55.5]}
8... Ne4 {[%clk 0:02:58]} 9. Qc2 {[%clk 0:02:55.7]} 9... f5 {[%clk 0:02:57.3]}
10. c5 {[%clk 0:02:51]} 10... bxc5 {[%clk 0:02:53.6]} 11. Rb1 {[%clk 0:02:50]}
11... Bc6 {[%clk 0:02:52.3]} 12. Ne5 {[%clk 0:02:49.9]} 12... cxd4 {[%clk
0:02:46.9]} 13. Nxc6 {[%clk 0:02:42.5]} 13... Nxc6 {[%clk 0:02:47.8]} 14. cxd4
{[%clk 0:02:37.1]} 14... Nf6 {[%clk 0:02:21]} 15. Ba3 {[%clk 0:02:36.1]} 15...
Re8 {[%clk 0:02:18.8]} 16. Rb7 {[%clk 0:01:54.7]} 16... Rb8 {[%clk 0:02:12.7]}
17. Rfb1 {[%clk 0:01:54.6]} 17... Rxb7 {[%clk 0:02:11.7]} 18. Rxb7 {[%clk
0:01:55.5]} 18... Nd5 {[%clk 0:02:01.1]} 19. Bb5 {[%clk 0:01:43.1]} 19... f4
{[%clk 0:01:15.2]} 20. Bxc6 {[%clk 0:01:27.1]} 20... dxc6 {[%clk 0:01:09.8]} 21.
e4 {[%clk 0:01:26.3]} 21... Nb6 {[%clk 0:01:01.5]} 22. Qxc6 {[%clk 0:01:20]}
22... Qxd4 {[%clk 0:00:58]} 23. Qxe8# {[%clk 0:01:18.2]} 1-0

[Event "*** Titled Tuesday Blitz"]
[Site "Chess.com"]
[Date "2020.12.29"]
[Round "3"]
[White "FlamingPhoenix123"]
[Black "Jospem"]
[Result "0-1"]
[WhiteElo "2578"]
[BlackElo "2983"]
[TimeControl "180+1"]
[EndTime "10:26:02 PST"]
[Termination "Jospem won by resignation"]

1. e4 {[%clk 0:03:00.9]} 1... c5 {[%clk 0:02:59.6]} 2. Nf3 {[%clk 0:02:58.4]}
2... d6 {[%clk 0:03:00.1]} 3. d4 {[%clk 0:02:56.2]} 3... cxd4 {[%clk 0:03:01]}
4. Nxd4 {[%clk 0:02:57.1]} 4... a6 {[%clk 0:03:01.9]} 5. Nc3 {[%clk 0:02:56.7]}
5... e6 {[%clk 0:03:01.9]} 6. Be3 {[%clk 0:02:53.5]} 6... b5 {[%clk 0:03:02]} 7.
a3 {[%clk 0:02:48.6]} 7... Bb7 {[%clk 0:03:01.8]} 8. f3 {[%clk 0:02:47.2]} 8...
h5 {[%clk 0:02:58.5]} 9. Qd2 {[%clk 0:02:44.6]} 9... Nd7 {[%clk 0:02:58.7]} 10.
O-O-O {[%clk 0:02:34.2]} 10... Ngf6 {[%clk 0:02:58.1]} 11. h4 {[%clk 0:02:18]}
11... Rc8 {[%clk 0:02:54.5]} 12. Bg5 {[%clk 0:02:12.2]} 12... Be7 {[%clk
0:02:53.7]} 13. Bd3 {[%clk 0:02:09.1]} 13... Qb6 {[%clk 0:02:48.6]} 14. Be3
{[%clk 0:02:05.3]} 14... Qa5 {[%clk 0:02:40.1]} 15. Nb3 {[%clk 0:02:00.6]} 15...
Qc7 {[%clk 0:02:39]} 16. Rhg1 {[%clk 0:01:58.1]} 16... Ne5 {[%clk 0:02:14.4]}
17. Be2 {[%clk 0:01:52.1]} 17... O-O {[%clk 0:02:10.9]} 18. Bd4 {[%clk
0:01:44.3]} 18... Rfd8 {[%clk 0:02:00.5]} 19. Qe3 {[%clk 0:01:36.3]} 19... Ned7
{[%clk 0:01:55.9]} 20. g4 {[%clk 0:01:33.9]} 20... hxg4 {[%clk 0:01:44.7]} 21.
fxg4 {[%clk 0:01:34.8]} 21... e5 {[%clk 0:01:44.9]} 22. Ba7 {[%clk 0:01:26.7]}
22... Nxe4 {[%clk 0:01:39.7]} 23. g5 {[%clk 0:01:18.5]} 23... Nxc3 {[%clk
0:01:30.9]} 24. bxc3 {[%clk 0:01:19.4]} 24... Qxc3 {[%clk 0:01:31]} 25. Qxc3
{[%clk 0:01:11.8]} 25... Rxc3 {[%clk 0:01:31.9]} 26. Kb2 {[%clk 0:01:12.7]}
26... Rc7 {[%clk 0:01:25.6]} 27. Bg4 {[%clk 0:01:11.4]} 27... Be4 {[%clk
0:01:13.5]} 28. Rd2 {[%clk 0:01:11]} 28... Rxa7 {[%clk 0:01:12.4]} 0-1

[Event "*** Titled Tuesday Blitz"]
[Site "Chess.com"]
[Date "2020.12.29"]
[Round "3"]
[White "Pelopidass"]
[Black "BahadirOzen"]
[Result "0-1"]
[WhiteElo "2559"]
[BlackElo "2786"]
[TimeControl "180+1"]
[EndTime "10:26:03 PST"]
[Termination "BahadirOzen won by resignation"]

1. d4 {[%clk 0:03:00.9]} 1... d5 {[%clk 0:02:59.5]} 2. Nf3 {[%clk 0:03:01.4]}
2... Nf6 {[%clk 0:02:59.7]} 3. c4 {[%clk 0:03:00.2]} 3... e6 {[%clk 0:02:59.6]}
4. e3 {[%clk 0:02:59.5]} 4... Be7 {[%clk 0:02:54]} 5. Nbd2 {[%clk 0:02:58.5]}
5... O-O {[%clk 0:02:53.1]} 6. Bd3 {[%clk 0:02:57.8]} 6... c5 {[%clk 0:02:43]}
7. b3 {[%clk 0:02:57.5]} 7... b6 {[%clk 0:02:36.5]} 8. Bb2 {[%clk 0:02:56.6]}
8... Bb7 {[%clk 0:02:36.6]} 9. O-O {[%clk 0:02:56.5]} 9... Nbd7 {[%clk
0:02:33.4]} 10. Rc1 {[%clk 0:02:54.5]} 10... Rc8 {[%clk 0:02:28]} 11. Qe2 {[%clk
0:02:51.5]} 11... Qc7 {[%clk 0:02:20.4]} 12. cxd5 {[%clk 0:02:43.2]} 12... Nxd5
{[%clk 0:02:19]} 13. Rfd1 {[%clk 0:02:24.3]} 13... Qb8 {[%clk 0:02:17.8]} 14. a3
{[%clk 0:02:17.5]} 14... cxd4 {[%clk 0:02:04.3]} 15. Nxd4 {[%clk 0:02:18.4]}
15... Rxc1 {[%clk 0:02:04.3]} 16. Rxc1 {[%clk 0:02:19.3]} 16... Rc8 {[%clk
0:02:04.3]} 17. Rxc8+ {[%clk 0:02:08.8]} 17... Qxc8 {[%clk 0:02:03.1]} 18. f3
{[%clk 0:02:08.4]} 18... Nc5 {[%clk 0:01:57.6]} 19. Bc4 {[%clk 0:01:52.1]} 19...
Bf6 {[%clk 0:01:46.6]} 20. e4 {[%clk 0:01:25.3]} 20... Nf4 {[%clk 0:01:46.4]}
21. Qe3 {[%clk 0:01:25.8]} 21... Bg5 {[%clk 0:01:45.7]} 22. Qf2 {[%clk
0:01:18.4]} 22... Nfd3 {[%clk 0:01:33.5]} 23. Qg3 {[%clk 0:01:05.3]} 23... Be3+
{[%clk 0:01:33.1]} 24. Kf1 {[%clk 0:01:04.9]} 24... Nxb2 {[%clk 0:01:32.1]} 0-1